fUST/lending_fUST_20240927
["ID","MTS","AMOUNT","RATE_DAILY","PERIOD"]
[339267681,1727422248373,-500.0,0.00021,30]
[339267682,1727422248382,-939.9144285,0.00021,30]
[339267683,1727422248392,-500.0,0.00021,30]
[339267684,1727422248401,-500.0,0.00021,30]
[339267685,1727422248411,-500.0,0.00021,30]
[339267686,1727422248420,-500.0,0.00021,30]
[339267687,1727422248429,-500.0,0.00021,30]
[339267688,1727422248439,-500.0,0.00021,30]
[339267689,1727422248449,-500.0,0.00021,30]
[339267690,1727422248458,-546.55036028,0.00021,30]
[339267691,1727422248467,-500.0,0.00021,30]
[339267692,1727422248477,-154.74467129,0.00021,30]
[339267693,1727422248486,-500.0,0.00021,30]
[339267694,1727422248496,-500.0,0.00021,30]
[339267695,1727422248505,-503.72618512,0.00021,30]
[339267696,1727422248514,-504.39221637,0.00021,30]
[339267697,1727422248524,-500.0,0.00021,30]
[339267698,1727422248534,-500.0,0.00021,30]
[339267699,1727422248543,-500.0,0.00021,30]
[339267700,1727422248554,-500.0,0.00021,30]
[339267701,1727422248563,-504.42998189,0.00021,30]
[339267702,1727422248572,-500.0,0.00021,30]
[339267703,1727422248582,-500.0,0.00021,30]
[339267704,1727422248591,-500.0,0.00021,30]
[339267705,1727422248600,-500.0,0.00021,30]
[339267706,1727422248609,-500.0,0.00021,30]
[339267707,1727422248619,-500.0,0.00021,30]
[339267708,1727422248628,-500.0,0.00021,30]
[339267709,1727422248638,-500.0,0.00021,30]
[339267710,1727422248647,-500.0,0.00021,30]
[339267711,1727422248657,-500.0,0.00021,30]
[339267712,1727422248666,-500.0,0.00021,30]
[339267713,1727422248676,-500.0,0.00021,30]
[339267714,1727422248686,-500.0,0.00021,30]
[339267715,1727422248695,-500.0,0.00021,30]
[339267716,1727422248705,-500.0,0.00021,30]
[339267717,1727422248714,-500.0,0.00021,30]
[339267718,1727422248724,-499.3,0.00021,30]
[339267719,1727422248734,-154.74467129,0.00021,30]
[339267720,1727422248748,-502.18180867,0.00021,30]
[339267721,1727422248757,-500.0,0.00021,30]
[339267722,1727422248767,-500.0,0.00021,30]
[339267723,1727422248777,-500.0,0.00021,30]
[339267724,1727422248786,-501.30939348,0.00021,30]
[339267725,1727422248797,-501.66777924,0.00021,30]
[339267726,1727422248807,-500.0,0.00021,30]
[339267727,1727422248817,-500.0,0.00021,30]
[339267728,1727422248827,-500.0,0.00021,30]
[339267729,1727422248836,-500.0,0.00021,30]
[339267730,1727422248846,-500.0,0.00021,30]
[339267731,1727422248855,-500.0,0.00021,30]
[339267732,1727422248866,-500.0,0.00021,30]
[339267733,1727422248875,-500.0,0.00021,30]
[339267734,1727422248885,-500.0,0.00021,30]
[339267735,1727422248895,-500.0,0.00021,30]
[339267736,1727422248904,-500.0,0.00021,30]
[339267737,1727422248914,-500.0,0.00021,30]
[339267738,1727422248924,-500.0,0.00021,30]
[339267739,1727422248934,-500.0,0.00021,30]
[339267740,1727422248943,-500.0,0.00021,30]
[339267741,1727422248953,-500.0,0.00021,30]
[339267742,1727422248962,-500.0,0.00021,30]
[339267743,1727422248972,-500.0,0.00021,30]
[339267744,1727422248982,-500.0,0.00021,30]
[339267745,1727422248991,-500.0,0.00021,30]
[339267746,1727422249001,-500.0,0.00021,30]
[339267747,1727422249010,-500.0,0.00021,30]
[339267748,1727422249020,-500.0,0.00021,30]
[339267749,1727422249029,-500.0,0.00021,30]
[339267750,1727422249040,-500.0,0.00021,30]
[339267751,1727422249052,-500.0,0.00021,30]
[339267752,1727422249062,-500.0,0.00021,30]
[339267753,1727422249071,-500.0,0.00021,30]
[339267754,1727422249080,-500.0,0.00021,30]
[339267755,1727422249090,-500.0,0.00021,30]
[339267756,1727422249100,-500.0,0.00021,30]
[339267757,1727422249110,-3000.0,0.0002101,2]
[339267758,1727422249120,-3000.0,0.0002102,2]
[339267759,1727422249131,-159.65484,0.00021026,2]
[339267760,1727422249141,-207.740429,0.00021026,2]
[339267761,1727422249289,-235.107178,0.00021026,2]
[339267762,1727422249309,-271.331706,0.00021026,2]
[339267763,1727422249319,-235.107178,0.00021026,2]
[339267764,1727422249328,-271.331706,0.00021026,2]
[339267765,1727422249337,-235.107178,0.00021026,2]
[339267766,1727422249347,-235.107178,0.00021026,2]
[339267767,1727422249357,-271.331706,0.00021026,2]
[339267768,1727422249368,-199.643417,0.00021026,2]
[339267769,1727422249378,-217.065364,0.00021026,2]
[339267770,1727422249387,-3000.0,0.0002103,2]
[339267771,1727422249397,-3000.0,0.0002104,2]
[339267772,1727422249407,-151.0,0.00021048,2]
[339267773,1727422249417,-3000.0,0.0002105,2]
[339267774,1727422249427,-3000.0,0.0002106,2]
[339267775,1727422249439,-3000.0,0.0002107,2]
[339267776,1727422249452,-151.0,0.0002108,2]
[339267777,1727422249462,-151.0,0.0002108,2]
[339267778,1727422249471,-151.0,0.0002108,2]
[339267779,1727422249482,-3000.0,0.0002108,2]
[339267780,1727422249491,-3000.0,0.0002109,2]
[339267781,1727422249501,-500.0,0.00021095,2]
[339267782,1727422249511,-2138.35,0.00021095,2]
[339267783,1727422249520,-200.0,0.00021095,2]
[339267784,1727422249530,-500.0,0.00021095,2]
[339267785,1727422249539,-500.0,0.00021095,2]
[339267786,1727422249550,-500.0,0.00021095,2]
[339267787,1727422249560,-1508.71,0.00021095,2]
[339267788,1727422249570,-500.0,0.00021095,2]
[339267789,1727422249580,-544.6,0.00021095,2]
[339267790,1727422249590,-1105.35,0.00021095,2]
[339267791,1727422249599,-1320.5,0.00021095,2]
[339267792,1727422249609,-591.25,0.00021095,2]
[339267793,1727422249620,-1182.11,0.00021095,2]
[339267794,1727422249629,-500.0,0.00021095,2]
[339267795,1727422249640,-548.75,0.00021095,2]
[339267796,1727422249650,-684.5,0.00021095,2]
[339267797,1727422249660,-18259.42,0.00021095,2]
[339267798,1727422249670,-3345.55,0.00021095,2]
[339267799,1727422249679,-2062.03837689,0.000211,2]
[339267800,1727422249689,-151.0,0.000211,16]
[339267801,1727422249699,-3000.0,0.000211,2]
[339267802,1727422249709,-3000.0,0.0002111,2]
[339267803,1727422249719,-3000.0,0.0002112,2]
[339267804,1727422249728,-3000.0,0.0002113,2]
[339267805,1727422249738,-251.237435,0.00021132,2]
[339267806,1727422249748,-3000.0,0.0002114,2]
[339267807,1727422249757,-3000.0,0.0002115,2]
[339267808,1727422249767,-3000.0,0.0002116,2]
[339267809,1727422249777,-3000.0,0.0002117,2]
[339267810,1727422249786,-3000.0,0.0002118,2]
[339267811,1727422249796,-259.654181,0.0002118,2]
[339267812,1727422249808,-151.0,0.0002118,2]
[339267813,1727422249818,-259.654181,0.0002118,2]
[339267814,1727422249828,-151.0,0.0002118,2]
[339267815,1727422249837,-151.0,0.0002118,2]
[339267816,1727422249847,-3000.0,0.0002119,2]
[339267817,1727422249856,-506.77675041,0.000212,2]
[339267818,1727422249866,-300.349862,0.000212,9]
[339267819,1727422249876,-3000.0,0.000212,2]
[339267820,1727422249887,-579.533932,0.000212,2]
[339267821,1727422249896,-579.533932,0.000212,2]
[339267822,1727422249906,-304.506706,0.000212,2]
[339267823,1727422249916,-304.506706,0.000212,2]
[339267824,1727422249925,-742.92936154,0.000212,30]
[339267825,1727422249935,-365.129402,0.000212,2]
[339267826,1727422249944,-365.129402,0.000212,2]
[339267827,1727422249953,-151.0,0.000212,2]
[339267828,1727422249964,-3000.0,0.0002121,2]
[339267829,1727422249973,-3000.0,0.0002122,2]
[339267830,1727422249983,-3000.0,0.0002123,2]
[339267831,1727422249992,-609.73991382,0.0002123,3]
[339267832,1727422250003,-1500.0,0.00021231,2]
[339267833,1727422250012,-1500.0,0.00021231,2]
[339267834,1727422250022,-1008.57077754,0.00021231,2]
[339267835,1727422250031,-3000.0,0.0002124,2]
[339267836,1727422250041,-3000.0,0.0002125,2]
[339267837,1727422250054,-3000.0,0.0002126,2]
[339267838,1727422250063,-212.608922,0.0002127,2]
[339267839,1727422250075,-212.608922,0.0002127,2]
[339267840,1727422250085,-3000.0,0.0002127,2]
[339267841,1727422250094,-151.0,0.00021277,2]
[339267842,1727422250103,-3000.0,0.0002128,2]
[339267843,1727422250113,-151.0,0.0002128,2]
[339267844,1727422250122,-151.0,0.0002128,2]
[339267845,1727422250132,-235.107178,0.00021289,2]
[339267846,1727422250141,-217.065364,0.00021289,2]
[339267847,1727422250154,-3000.0,0.0002129,2]
[339267848,1727422250164,-151.0,0.0002129,2]
[339267849,1727422250173,-151.0,0.0002129,2]
[339267850,1727422250182,-151.0,0.0002129,2]
[339267851,1727422250191,-151.0,0.0002129,2]
[339267852,1727422250201,-296.971696,0.0002129,2]
[339267853,1727422250210,-295.696888,0.0002129,2]
[339267854,1727422250219,-295.696888,0.0002129,2]
[339267855,1727422250228,-3000.0,0.000213,2]
[339267856,1727422250237,-1000.0,0.000213,2]
[339267857,1727422250247,-1000.0,0.000213,2]
[339267858,1727422250256,-1000.0,0.000213,2]
[339267859,1727422250265,-1000.0,0.000213,2]
[339267860,1727422250274,-1000.0,0.000213,2]
[339267861,1727422250284,-1000.0,0.000213,2]
[339267862,1727422250293,-1000.0,0.000213,2]
[339267863,1727422250309,-1000.0,0.000213,2]
[339267864,1727422250319,-1000.0,0.000213,2]
[339267865,1727422250328,-1000.0,0.000213,2]
[339267866,1727422250338,-1000.0,0.000213,2]
[339267867,1727422250348,-1000.0,0.000213,2]
[339267868,1727422250358,-1000.0,0.000213,2]
[339267869,1727422250368,-1000.0,0.000213,2]
[339267870,1727422250378,-1000.0,0.000213,2]
[339267871,1727422250387,-1000.0,0.000213,2]
[339267872,1727422250397,-1000.0,0.000213,2]
[339267873,1727422250407,-1000.0,0.000213,2]
[339267874,1727422250417,-1000.0,0.000213,2]
[339267875,1727422250427,-886.8164385,0.000213,2]
[339267876,1727422250437,-252.66506,0.000213,2]
[339267877,1727422250446,-252.66506,0.000213,2]
[339267878,1727422250456,-708.467697,0.000213,2]
[339267879,1727422250465,-3000.0,0.0002131,2]
[339267880,1727422250474,-277.939259,0.0002131,2]
[339267881,1727422250484,-160.254891,0.0002131,2]
[339267882,1727422250494,-160.254891,0.0002131,2]
[339267883,1727422250503,-3000.0,0.0002132,2]
[339267884,1727422250513,-3000.0,0.0002133,2]
[339267885,1727422250522,-3000.0,0.0002134,2]
[339267886,1727422250532,-3000.0,0.0002135,2]
[339267887,1727422250541,-3000.0,0.0002136,2]
[339267888,1727422250554,-500.0,0.00021369,2]
[339267889,1727422250563,-2138.35,0.00021369,2]
[339267890,1727422250573,-200.0,0.00021369,2]
[339267891,1727422250582,-500.0,0.00021369,2]
[339267892,1727422250592,-151.0,0.00021369,2]
[339267893,1727422250601,-151.0,0.00021369,2]
[339267894,1727422250610,-500.0,0.00021369,2]
[339267895,1727422250620,-215.39,0.00021369,2]
[339267896,1727422250629,-1508.71,0.00021369,2]
[339267897,1727422250638,-500.0,0.00021369,2]
[339267898,1727422250648,-544.6,0.00021369,2]
[339267899,1727422250658,-1105.35,0.00021369,2]
[339267900,1727422250667,-1320.5,0.00021369,2]
[339267901,1727422250676,-591.25,0.00021369,2]
[339267902,1727422250686,-1182.11,0.00021369,2]
[339267903,1727422250696,-500.0,0.00021369,2]
[339267904,1727422250706,-548.75,0.00021369,2]
[339267905,1727422250716,-684.5,0.00021369,2]
[339267906,1727422250726,-18259.42,0.00021369,2]
[339267907,1727422250736,-3345.55,0.00021369,2]
[339267908,1727422250746,-3000.0,0.0002137,2]
[339267909,1727422250756,-150.0,0.00021373,2]
[339267910,1727422250765,-3000.0,0.0002138,2]
[339267911,1727422250775,-159.654838,0.00021387,2]
[339267912,1727422250785,-251.237435,0.00021387,2]
[339267913,1727422250795,-1335.55480044,0.0002139,2]
[339267914,1727422251247,-57.96694569,0.00019178,2]
[339267970,1727423132150,-300.0,0.00014618,2]
[339267971,1727423132173,-300.0,0.00014618,2]
[339267972,1727423132194,-1000.0,0.00014619,2]
[339267973,1727423132215,-1000.0,0.00014619,2]
[339267974,1727423132237,-1000.0,0.00014619,2]
[339267975,1727423132259,-1000.0,0.00014619,2]
[339267976,1727423132279,-1000.0,0.00014619,2]
[339267977,1727423132300,-1003.68313061,0.00014619,2]
[339267978,1727423132323,-250.0,0.00015632,2]
[339267979,1727423132346,-250.0,0.00015675,2]
[339267980,1727423132369,-250.0,0.00015718,2]
[339267981,1727423132395,-250.0,0.00015761,2]
[339267982,1727423132419,-250.0,0.00015804,2]
[339267983,1727423132443,-250.0,0.00015846,2]
[339267984,1727423132468,-250.0,0.00015889,2]
[339267985,1727423132491,-250.0,0.00015932,2]
[339267986,1727423132514,-250.0,0.00015975,2]
[339267987,1727423132535,-420.0,0.00016005,2]
[339267988,1727423132557,-250.0,0.00016018,2]
[339267989,1727423132579,-250.0,0.00016061,2]
[339267990,1727423132600,-420.0,0.0001608,2]
[339267991,1727423132623,-250.0,0.00016104,2]
[339267992,1727423132646,-250.0,0.00016147,2]
[339267993,1727423132669,-250.0,0.00016189,2]
[339267994,1727423132691,-250.0,0.00016232,2]
[339267995,1727423132715,-250.0,0.00016275,2]
[339267996,1727423132738,-250.0,0.00016318,2]
[339267997,1727423132760,-250.0,0.00016361,2]
[339267998,1727423132783,-250.0,0.00016404,2]
[339267999,1727423132805,-250.0,0.00016447,2]
[339268000,1727423132828,-166.6666705,0.00016663,2]
[339268001,1727423132850,-821.532541,0.00016769,2]
[339268002,1727423132872,-500.0,0.00016788,2]
[339268003,1727423132895,-332.15589988,0.00016788,2]
[339268004,1727423132920,-500.0,0.00016788,2]
[339268005,1727423132946,-500.0,0.00016788,2]
[339268006,1727423132970,-500.0,0.00016788,2]
[339268007,1727423132994,-500.0,0.00016788,2]
[339268008,1727423133020,-500.0,0.00016788,2]
[339268009,1727423133046,-525.90545131,0.00016788,2]
[339268010,1727423133072,-500.0,0.00016788,2]
[339268011,1727423133096,-500.0,0.00016788,2]
[339268012,1727423133121,-500.0,0.00016788,2]
[339268013,1727423133146,-500.0,0.00016788,2]
[339268014,1727423133173,-500.0,0.00016788,2]
[339268016,1727423133198,-500.0,0.00016788,2]
[339268017,1727423133223,-500.0,0.00016788,2]
[339268018,1727423133250,-500.0,0.00016788,2]
[339268019,1727423133276,-500.0,0.00016788,2]
[339268020,1727423133303,-500.0,0.00016788,2]
[339268021,1727423133328,-500.0,0.00016788,2]
[339268022,1727423133353,-500.0,0.00016788,2]
[339268023,1727423133379,-500.0,0.00016788,2]
[339268024,1727423133407,-500.0,0.00016788,2]
[339268025,1727423133435,-500.0,0.00016788,2]
[339268026,1727423133459,-24900.0,0.00016789,2]
[339268027,1727423133485,-500.0,0.000168,2]
[339268028,1727423133508,-150.0,0.0001685,2]
[339268029,1727423133530,-3000.0,0.00017122,2]
[339268030,1727423133553,-2146.5712728,0.000172,2]
[339268031,1727423133576,-205.479813,0.00017225,2]
[339268032,1727423133596,-653.92330911,0.00017225,8]
[339268033,1727423133617,-2285.70727043,0.0001732,2]
[339268034,1727423133638,-604.645136,0.0001742,2]
[339268035,1727423133661,-821.532541,0.00017454,2]
[339268036,1727423133682,-587.0,0.00017523,2]
[339268037,1727423133703,-587.0,0.00017688,2]
[339268038,1727423133725,-821.532541,0.00018139,2]
[339268039,1727423133746,-550.71094857,0.00018159,2]
[339268040,1727423133768,-500.0,0.00018355,2]
[339268041,1727423133790,-2900.0,0.0001897,2]
[339268042,1727423133811,-257.97207789,0.00018977,2]
[339268043,1727423133832,-5000.0,0.00019,2]
[339268044,1727423133855,-500.0,0.00019057,2]
[339268045,1727423133876,-505.49299452,0.00019057,2]
[339268046,1727423133896,-187.72590463,0.00019057,2]
[339268047,1727423133922,-372.01306035,0.00019057,2]
[339268048,1727423133945,-500.0,0.00019057,2]
[339268049,1727423133968,-500.0,0.00019057,2]
[339268050,1727423133991,-583.85767373,0.00019057,2]
[339268051,1727423134015,-4783.06176716,0.00019058,3]
[339268052,1727423134165,-3892.22747094,0.00019058,3]
[339268053,1727423134189,-2391.53088358,0.00019067,3]
[339268054,1727423134211,-1946.11373547,0.00019067,3]
[339268055,1727423134232,-1000.0,0.00019068,2]
[339268056,1727423134253,-2182.72583066,0.00019077,2]
[339268057,1727423134275,-2000.0,0.00019077,2]
[339268058,1727423134296,-2000.0,0.00019077,2]
[339268059,1727423134318,-2000.0,0.00019077,2]
[339268060,1727423134339,-2000.0,0.00019077,2]
[339268061,1727423134360,-2000.0,0.00019077,2]
[339268062,1727423134381,-3203.65293008,0.00019155,2]
[339268063,1727423134407,-9566.12353432,0.00019158,3]
[339268064,1727423134431,-7784.45494188,0.00019158,3]
[339268065,1727423134454,-7174.59265074,0.00019168,3]
[339268066,1727423134478,-5838.34120641,0.00019168,3]
[339268067,1727423134501,-442.03305431,0.00019178,2]
[339268068,1727423134524,-500.0,0.00019178,2]
[339268069,1727423134546,-500.0,0.00019178,2]
[339268070,1727423134568,-500.0,0.00019178,2]
[339268071,1727423134588,-381.34843095,0.00019178,2]
[339268072,1727423134610,-558.81008031,0.00019178,2]
[339268073,1727423134632,-504.58815005,0.00019178,2]
[339268074,1727423134653,-503.58012951,0.00019178,2]
[339268075,1727423134674,-500.0,0.00019178,2]
[339268076,1727423134695,-500.0,0.00019178,2]
[339268077,1727423134715,-510.45469994,0.00019178,2]
[339268078,1727423134736,-500.0,0.00019178,2]
[339268079,1727423134757,-151.0,0.00019178,2]
[339268080,1727423134777,-500.0,0.00019178,2]
[339268081,1727423134798,-500.0,0.00019178,2]
[339268082,1727423134818,-500.0,0.00019178,2]
[339268083,1727423134840,-500.0,0.00019178,2]
[339268084,1727423134861,-500.0,0.00019178,2]
[339268085,1727423134882,-502.390674,0.00019178,2]
[339268086,1727423134905,-500.0,0.00019178,2]
[339268087,1727423134925,-500.0,0.00019178,2]
[339268088,1727423134946,-500.0,0.00019178,2]
[339268089,1727423134966,-500.0,0.00019178,2]
[339268090,1727423134987,-500.0,0.00019178,2]
[339268091,1727423135008,-513.80457074,0.00019178,2]
[339268092,1727423135029,-500.0,0.00019178,2]
[339268093,1727423135050,-500.0,0.00019178,2]
[339268094,1727423135072,-537.87276711,0.00019178,2]
[339268095,1727423135093,-576.96590482,0.00019178,2]
[339268096,1727423135115,-500.0,0.00019178,2]
[339268097,1727423135137,-500.0,0.00019178,2]
[339268098,1727423135160,-500.0,0.00019178,2]
[339268099,1727423135182,-1433.67,0.00019178,2]
[339268100,1727423135204,-500.0,0.00019178,2]
[339268101,1727423135226,-500.0,0.00019178,2]
[339268102,1727423135248,-500.0,0.00019178,2]
[339268103,1727423135270,-500.0,0.00019178,2]
[339268104,1727423135291,-500.0,0.00019178,2]
[339268105,1727423135312,-500.0,0.00019178,2]
[339268106,1727423135333,-500.0,0.00019178,2]
[339268107,1727423135354,-502.34490167,0.00019178,2]
[339268108,1727423135376,-500.0,0.00019178,2]
[339268109,1727423135401,-510.67197481,0.00019178,2]
[339268110,1727423135424,-500.0,0.00019178,2]
[339268111,1727423135445,-522.31,0.00019178,2]
[339268112,1727423135467,-286.42954028,0.00019178,2]
[339268113,1727423135490,-500.0,0.00019178,2]
[339268114,1727423135512,-500.0,0.00019178,2]
[339268115,1727423135535,-500.0,0.00019178,2]
[339268116,1727423135555,-500.0,0.00019178,2]
[339268117,1727423135576,-527.50529191,0.00019178,2]
[339268118,1727423135596,-200.0,0.00019178,2]
[339268119,1727423135617,-500.0,0.00019178,2]
[339268120,1727423135637,-500.0,0.00019178,2]
[339268121,1727423135657,-500.0,0.00019178,2]
[339268122,1727423135678,-500.0,0.00019178,2]
[339268123,1727423135699,-500.0,0.00019178,2]
[339268124,1727423135720,-644.59,0.00019178,2]
[339268125,1727423135740,-501.39593937,0.00019178,2]
[339268126,1727423135760,-500.0,0.00019178,2]
[339268127,1727423135782,-500.0,0.00019178,2]
[339268128,1727423135802,-500.0,0.00019178,2]
[339268129,1727423135822,-500.0,0.00019178,2]
[339268130,1727423135842,-500.0,0.00019178,2]
[339268131,1727423135863,-502.35887065,0.00019178,2]
[339268132,1727423135884,-500.0,0.00019178,2]
[339268133,1727423135904,-500.0,0.00019178,2]
[339268134,1727423135925,-500.0,0.00019178,2]
[339268135,1727423135947,-500.0,0.00019178,2]
[339268136,1727423135967,-500.0,0.00019178,2]
[339268137,1727423135988,-506.9631779,0.00019178,2]
[339268138,1727423136008,-500.0,0.00019178,2]
[339268139,1727423136029,-500.0,0.00019178,2]
[339268140,1727423136050,-500.0,0.00019178,2]
[339268141,1727423136070,-500.0,0.00019178,2]
[339268142,1727423136103,-500.0,0.00019178,2]
[339268143,1727423136126,-500.0,0.00019178,2]
[339268144,1727423136147,-500.0,0.00019178,2]
[339268145,1727423136169,-500.0,0.00019178,2]
[339268146,1727423136190,-500.0,0.00019178,2]
[339268147,1727423136211,-500.0,0.00019178,2]
[339268148,1727423136232,-500.0,0.00019178,2]
[339268149,1727423136253,-500.0,0.00019178,2]
[339268150,1727423136276,-500.0,0.00019178,2]
[339268151,1727423136299,-500.0,0.00019178,2]
[339268152,1727423136324,-500.0,0.00019178,2]
[339268153,1727423136346,-510.19242227,0.00019178,2]
[339268154,1727423136368,-506.75925166,0.00019178,2]
[339268155,1727423136390,-522.10456009,0.00019178,2]
[339268156,1727423136415,-500.0,0.00019178,2]
[339268157,1727423136438,-500.0,0.00019178,2]
[339268158,1727423136460,-506.59010023,0.00019178,2]
[339268159,1727423136483,-502.42042241,0.00019178,2]
[339268160,1727423136505,-500.0,0.00019178,2]
[339268161,1727423136526,-500.0,0.00019178,2]
[339268162,1727423136548,-500.0,0.00019178,2]
[339268163,1727423136569,-500.0,0.00019178,2]
[339268164,1727423136593,-500.0,0.00019178,2]
[339268165,1727423136614,-501.42969958,0.00019178,2]
[339268166,1727423136637,-500.0,0.00019178,2]
[339268167,1727423136660,-531.76943769,0.00019178,2]
[339268168,1727423136681,-511.82620235,0.00019178,2]
[339268169,1727423136704,-508.5049903,0.00019178,2]
[339268170,1727423136726,-225.28399239,0.00019178,2]
[339268171,1727423136748,-506.21437589,0.00019178,2]
[339268172,1727423136768,-500.0,0.00019178,2]
[339268173,1727423136793,-532.44126041,0.00019178,2]
[339268174,1727423136815,-505.99498372,0.00019178,2]
[339268175,1727423136837,-502.9036482,0.00019178,2]
[339268176,1727423136859,-500.0,0.00019178,2]
[339268177,1727423136880,-502.07800957,0.00019178,2]
[339268178,1727423136900,-502.98838946,0.00019178,2]
[339268179,1727423136921,-509.43865599,0.00019178,2]
[339268180,1727423136942,-486.53392389,0.00019178,2]
[339268186,1727423153096,-340.97466535,0.00014519,2]
[339268187,1727423153118,-340.97466535,0.00015304,2]
[339268188,1727423153140,-340.97466535,0.00016089,2]
[339268190,1727423153163,-160.453282,0.00017405,2]
[339268191,1727423153191,-160.453282,0.00017418,2]
[339268192,1727423153213,-160.453282,0.0001743,2]
[339268193,1727423153236,-160.453282,0.00017443,2]
[339268194,1727423153258,-160.453282,0.00017455,2]
[339268195,1727423153281,-160.453282,0.00017467,2]
[339268196,1727423153303,-160.453282,0.0001748,2]
[339268197,1727423153326,-160.453282,0.00017492,2]
[339268198,1727423153347,-1571.08,0.00019168,3]
[339268199,1727423153367,-19.39938755,0.00019178,2]
[339268200,1727423153390,-291.00638307,0.00019178,2]
[339268201,1727423153414,-507.81399178,0.00019178,2]
[339268202,1727423153442,-501.88949167,0.00019178,2]
[339268203,1727423153463,-500.0,0.00019178,2]
[339268204,1727423153485,-505.7320297,0.00019178,2]
[339268205,1727423153507,-500.0,0.00019178,2]
[339268206,1727423153530,-500.0,0.00019178,2]
[339268207,1727423153550,-502.4963223,0.00019178,2]
[339268208,1727423153572,-507.33275191,0.00019178,2]
[339268209,1727423153592,-500.0,0.00019178,2]
[339268210,1727423153613,-513.28998254,0.00019178,2]
[339268211,1727423153636,-517.43819269,0.00019178,2]
[339268212,1727423153657,-500.0,0.00019178,2]
[339268213,1727423153683,-343.48435352,0.00019178,2]
[339268214,1727423153705,-503.06558109,0.00019178,2]
[339268215,1727423153728,-500.0,0.00019178,2]
[339268216,1727423153748,-500.0,0.00019178,2]
[339268217,1727423153769,-500.0,0.00019178,2]
[339268218,1727423153790,-500.0,0.00019178,2]
[339268219,1727423153812,-500.0,0.00019178,2]
[339268220,1727423153835,-500.0,0.00019178,2]
[339268221,1727423153859,-500.0,0.00019178,2]
[339268222,1727423153880,-500.0,0.00019178,2]
[339268223,1727423153901,-500.0,0.00019178,2]
[339268224,1727423153924,-500.0,0.00019178,2]
[339268225,1727423153949,-510.55708519,0.00019178,2]
[339268226,1727423153970,-500.0,0.00019178,2]
[339268227,1727423153993,-513.28879907,0.00019178,2]
[339268228,1727423154013,-501.83840042,0.00019178,2]
[339268229,1727423154036,-500.0,0.00019178,2]
[339268230,1727423154057,-506.72316098,0.00019178,2]
[339268231,1727423154078,-500.0,0.00019178,2]
[339268232,1727423154100,-506.99379314,0.00019178,2]
[339268233,1727423154122,-500.0,0.00019178,2]
[339268234,1727423154143,-507.75875498,0.00019178,2]
[339268235,1727423154165,-370.89419129,0.00019178,2]
[339268236,1727423154187,-506.81527205,0.00019178,2]
[339268237,1727423154208,-504.0,0.00019178,2]
[339268238,1727423154228,-508.71907042,0.00019178,2]
[339268239,1727423154250,-500.0,0.00019178,2]
[339268240,1727423154272,-500.0,0.00019178,2]
[339268241,1727423154293,-500.0,0.00019178,2]
[339268242,1727423154314,-500.0,0.00019178,2]